bitfinex/quotes_BTCUSD_20240901
["timestamp","ask_amount","ask_price","bid_price","bid_amount"]
[1725185202060,0.05490841,58322.0,58321.0,0.174398]
[1725185202271,0.342843,58336.0,58321.0,0.174398]
[1725185202272,0.51427,58335.0,58334.0,0.0707]
[1725185202480,0.748157,58335.0,58334.0,0.0707]
[1725185202663,0.748157,58335.0,58334.0,0.1534]
[1725185202664,0.727096,58335.0,58334.0,0.1534]
[1725185202904,0.701041,58335.0,58334.0,0.1534]
[1725185203142,0.495383,58335.0,58334.0,0.16994]
[1725185203328,0.283956,58335.0,58334.0,0.16794]
[1725185204085,0.726803,58335.0,58334.0,0.16794]
[1725185204323,0.726803,58335.0,58334.0,0.1514]
[1725185204531,0.726803,58335.0,58334.0,0.1394]
[1725185204732,1.12438017,58335.0,58334.0,0.1394]
[1725185205606,1.12438017,58335.0,58334.0,0.1414]
[1725185206024,1.12838017,58335.0,58334.0,0.1394]
[1725185206873,1.12838017,58335.0,58334.0,0.16434]
[1725185206874,0.514415,58335.0,58334.0,0.16434]
[1725185207293,0.857262,58335.0,58334.0,0.16434]
[1725185207705,1.200109,58335.0,58334.0,0.1494]
[1725185207922,1.196109,58335.0,58334.0,0.1494]
[1725185208130,1.22301162,58335.0,58334.0,0.1494]
[1725185208539,1.22301162,58335.0,58334.0,0.1504]
[1725185208540,1.22501162,58335.0,58334.0,0.1504]
[1725185208954,1.22382962,58335.0,58334.0,0.1494]
[1725185209363,1.22582962,58335.0,58334.0,0.1494]
[1725185209774,1.22582962,58335.0,58334.0,0.1564]
[1725185209991,1.22582962,58335.0,58334.0,0.1514]
[1725185210209,1.56867662,58335.0,58334.0,0.1464]
[1725185210426,1.91152362,58335.0,58334.0,0.007]
[1725185210633,1.93452362,58335.0,58334.0,0.007]
[1725185210837,2.27737062,58335.0,58334.0,0.007]
[1725185211250,2.27537062,58335.0,58334.0,0.007]
[1725185211661,2.27837062,58335.0,58334.0,0.007]
[1725185211880,2.76066791,58335.0,58334.0,0.007]
[1725185212299,6.16304991,58335.0,58334.0,0.007]
[1725185212515,5.94157791,58335.0,58334.0,0.007]
[1725185212717,4.05291991,58335.0,58320.0,0.1483]
[1725185212931,1.20023,58322.0,58320.0,0.1483]
[1725185213129,3.487866,58322.0,58320.0,0.1483]
[1725185213339,3.484446,58322.0,58320.0,0.1483]
[1725185213543,2.95733,58322.0,58320.0,0.1483]
[1725185214170,2.95733,58322.0,58321.0,0.009998]
[1725185214416,2.95733,58322.0,58321.0,0.008998]
[1725185215026,2.95733,58322.0,58321.0,0.009998]
[1725185215630,2.95733,58322.0,58321.0,0.008998]
[1725185215930,2.97144486,58322.0,58321.0,0.008998]
[1725185216138,2.98544486,58322.0,58321.0,0.009998]
[1725185216339,3.0213546,58322.0,58321.0,0.010998]
[1725185216954,3.0213546,58322.0,58315.0,0.074198]
[1725185216955,1.543315,58316.0,58315.0,0.008998]
[1725185217165,1.643315,58316.0,58315.0,0.008998]
[1725185217562,7.053086,58316.0,58315.0,0.008998]
[1725185217770,6.8901909,58316.0,58315.0,0.008998]
[1725185218369,6.7855639,58316.0,58315.0,0.008998]
[1725185218580,6.5976369,58316.0,58315.0,0.008998]
[1725185219192,5.6852169,58316.0,58315.0,0.008998]
[1725185219598,5.6992169,58316.0,58315.0,0.008998]
[1725185220019,5.7082169,58316.0,58315.0,0.009998]
[1725185220242,6.4587394,58316.0,58315.0,0.009998]
[1725185220459,6.0421759,58316.0,58315.0,0.008998]
[1725185220694,4.9503489,58316.0,58315.0,0.008998]
[1725185220919,4.99930677,58316.0,58315.0,0.009998]
[1725185221182,4.99930677,58316.0,58311.0,1e-06]
[1725185221183,1.891401,58312.0,58311.0,1e-06]
[1725185221451,1.891401,58312.0,58285.0,0.092098]
[1725185221452,0.171567,58286.0,58285.0,0.008998]
[1725185221696,4.117203,58286.0,58285.0,0.008998]
[1725185221934,2.780719,58286.0,58285.0,0.008998]
[1725185222419,2.437584,58286.0,58285.0,0.008998]
[1725185222673,1.323972,58286.0,58285.0,0.008998]
[1725185222903,3.552775,58286.0,58285.0,0.008998]
[1725185223138,4.378961,58286.0,58285.0,0.008998]
[1725185223362,3.865384,58286.0,58285.0,0.008998]
[1725185223583,3.860384,58286.0,58285.0,0.008998]
[1725185223818,2.611219,58286.0,58285.0,0.008998]
[1725185224073,0.114,58286.0,58285.0,0.104098]
[1725185224335,0.114,58286.0,58285.0,0.1797078]
[1725185224751,0.014,58286.0,58285.0,0.1797078]
[1725185225424,0.171564,58287.0,58286.0,0.012]
[1725185225656,0.514693,58287.0,58286.0,0.012]
[1725185225881,0.54161578,58287.0,58286.0,0.012]
[1725185226125,0.173567,58286.0,58285.0,0.157298]
[1725185226354,0.616702,58286.0,58285.0,0.157298]
[1725185226592,0.273567,58286.0,58285.0,0.1730278]
[1725185226812,0.1,58286.0,58285.0,0.157298]
[1725185227040,0.271567,58286.0,58285.0,0.157298]
[1725185227679,0.1,58286.0,58285.0,0.157298]
[1725185227876,0.005,58287.0,58285.0,0.157298]
[1725185228086,0.005,58287.0,58286.0,0.10226079]
[1725185228290,0.005,58287.0,58286.0,0.0988298]
[1725185228499,0.176564,58287.0,58286.0,0.0988298]
[1725185228700,0.105,58287.0,58286.0,0.0988298]
[1725185228905,0.1,58287.0,58286.0,0.0988298]
[1725185229312,0.1,58287.0,58286.0,0.0948298]
[1725185229535,0.343057,58300.0,58286.0,0.0948298]
[1725185229744,0.343057,58300.0,58285.0,0.008998]
[1725185229745,0.26694,58299.0,58289.0,0.0831]
[1725185229957,0.171551,58292.0,58289.0,0.0831]
[1725185230185,0.34308,58296.0,58289.0,0.0831]
[1725185230186,0.171556,58290.0,58289.0,0.0781]
[1725185230392,0.1,58291.0,58289.0,0.09436808]
[1725185230617,0.1,58291.0,58289.0,0.0196989]
[1725185231241,0.1,58293.0,58289.0,0.0196989]
[1725185231606,0.343057,58300.0,58289.0,0.0196989]
[1725185231607,0.171556,58290.0,58289.0,0.01626808]
[1725185231811,0.171558,58289.0,58288.0,0.0652]
[1725185232012,1.459234,58289.0,58288.0,0.0652]
[1725185232213,1.806031,58289.0,58288.0,0.0652]
[1725185233031,1.771311,58289.0,58288.0,0.0652]
[1725185233272,1.771311,58289.0,58288.0,0.1456]
[1725185233678,1.772311,58289.0,58288.0,0.1466]
[1725185233881,1.751635,58289.0,58288.0,0.1466]
[1725185234085,0.615675,58289.0,58288.0,0.1611598]
[1725185234296,0.272558,58289.0,58288.0,0.1611598]
[1725185235144,0.615675,58289.0,58288.0,0.1611598]
[1725185236603,0.101,58289.0,58288.0,0.1456]
[1725185236811,0.001,58289.0,58288.0,0.1456]
[1725185237035,0.001,58289.0,58288.0,0.317161]
[1725185237275,0.001,58289.0,58288.0,0.319161]
[1725185237682,0.000819,58291.0,58288.0,0.319161]
[1725185237683,0.000819,58291.0,58290.0,0.14791533]
[1725185237894,0.000819,58291.0,58290.0,0.65619219]
[1725185238309,0.000819,58291.0,58290.0,0.99930419]
[1725185238731,0.342933,58321.0,58312.0,0.0804]
[1725185238957,0.50540786,58324.0,58315.0,0.0804]
[1725185239153,0.50540786,58324.0,58314.0,0.0611]
[1725185239154,0.342908,58325.0,58317.0,0.0804]
[1725185239367,0.171464,58322.0,58317.0,0.0804]
[1725185239814,0.342891,58328.0,58317.0,0.0804]
[1725185239815,0.17145,58326.0,58318.0,0.06452909]
[1725185240025,0.342891,58328.0,58319.0,0.0804]
[1725185240026,0.171456,58324.0,58319.0,0.0804]
[1725185240234,0.171454,58325.0,58320.0,0.01937119]
[1725185240635,0.171454,58325.0,58320.0,0.01837119]
[1725185240842,0.02690659,58324.0,58320.0,0.01837119]
[1725185241056,0.02690659,58324.0,58321.0,0.01598712]
[1725185241057,0.171459,58323.0,58321.0,0.01598712]
[1725185241683,0.1,58322.0,58321.0,0.01598712]
[1725185242105,0.1,58322.0,58321.0,0.01941617]
[1725185242307,0.02690659,58324.0,58321.0,0.01598712]
[1725185242522,0.02690659,58324.0,58322.0,0.03503233]
[1725185242731,0.02690659,58324.0,58322.0,0.03846118]
[1725185242945,0.02690659,58324.0,58323.0,0.316958]
[1725185243154,0.02690659,58324.0,58323.0,0.1455]
[1725185243805,0.1,58327.0,58323.0,0.1455]
[1725185244016,0.1,58327.0,58325.0,0.1455]
[1725185244396,0.1,58327.0,58325.0,0.1445]
[1725185244643,0.1,58328.0,58325.0,0.1445]
[1725185245264,0.271445,58328.0,58325.0,0.1445]
[1725185245935,0.1,58328.0,58325.0,0.1445]
[1725185246148,0.171443,58329.0,58326.0,0.03919703]
[1725185246358,0.1,58328.0,58325.0,0.1445]
[1725185246570,0.271444,58328.0,58325.0,0.1445]
[1725185247222,0.29834853,58328.0,58325.0,0.1445]
[1725185247432,0.29834853,58328.0,58326.0,0.03885426]
[1725185247780,0.29916753,58328.0,58325.0,0.1445]
[1725185248201,0.171447,58327.0,58325.0,0.1445]
[1725185248395,0.1,58326.0,58325.0,0.1445]
[1725185251221,0.100819,58328.0,58325.0,0.1445]
[1725185251470,0.001,58326.0,58325.0,0.1515]
[1725185252476,0.171447,58327.0,58325.0,0.1445]
[1725185252707,0.1,58326.0,58325.0,0.1495]
[1725185253656,0.1,58327.0,58325.0,0.1495]
[1725185255317,0.1,58327.0,58325.0,0.1445]
[1725185255517,0.1,58327.0,58325.0,0.1515]
[1725185255723,0.001,58326.0,58325.0,0.1515]
[1725185256058,0.001,58326.0,58325.0,0.1445]
[1725185256059,0.51435,58326.0,58325.0,0.1445]
[1725185256266,0.51435,58326.0,58315.0,0.1391]
[1725185256267,0.171469,58320.0,58315.0,0.1391]
[1725185256470,0.171465,58321.0,58316.0,0.06146]
[1725185256673,0.171471,58319.0,58316.0,0.06146]
[1725185257418,0.171471,58319.0,58317.0,0.0847544]
[1725185257661,0.342931,58321.0,58317.0,0.0847544]
[1725185257898,0.17147,58320.0,58317.0,0.0847544]
[1725185258875,0.342931,58321.0,58317.0,0.0847544]
[1725185258876,0.171471,58319.0,58317.0,0.0847544]
[1725185259864,0.171473,58318.0,58317.0,0.0847544]
[1725185260336,0.51442,58318.0,58317.0,0.0987544]
[1725185260809,0.51442,58318.0,58317.0,0.014]
[1725185261063,1.200314,58318.0,58317.0,0.014]
[1725185261295,1.839751,58318.0,58317.0,0.014]
[1725185262257,1.864751,58318.0,58317.0,0.014]
[1725185262504,1.864751,58318.0,58315.0,0.0008998]
[1725185262505,1.202356,58316.0,58315.0,0.0008998]
[1725185262727,2.828413,58316.0,58315.0,0.0008998]
[1725185263409,2.798801,58316.0,58315.0,0.0008998]
[1725185263636,2.741504,58316.0,58315.0,0.0008998]
[1725185263894,2.742504,58316.0,58315.0,0.0068998]
[1725185264616,3.108463,58316.0,58315.0,0.0068998]
[1725185265205,3.2797274,58316.0,58315.0,0.0068998]
[1725185265768,3.6226864,58316.0,58315.0,0.0068998]
[1725185266494,3.6216864,58316.0,58315.0,0.0008998]
[1725185267791,3.6316864,58316.0,58315.0,0.0018998]
[1725185268294,3.9766454,58316.0,58315.0,8e-07]
[1725185268533,3.9766454,58316.0,58295.0,0.50540786]
[1725185268534,1.202766,58296.0,58295.0,0.50255902]
[1725185268766,3.011348,58296.0,58295.0,0.50255902]
[1725185269016,1.202909,58289.0,58288.0,0.0009009]
[1725185269204,2.813362,58289.0,58288.0,0.0009009]
[1725185269424,3.455311,58289.0,58288.0,0.0009009]
[1725185269633,1.728444,58289.0,58288.0,0.0009009]
[1725185269872,1.611124,58289.0,58288.0,0.0009009]
[1725185270303,1.559761,58289.0,58288.0,0.0009009]
[1725185270724,1.58668633,58289.0,58288.0,0.0009009]
[1725185271160,1.07201133,58289.0,58288.0,0.0009009]
[1725185271375,1.58668633,58289.0,58288.0,0.0009009]
[1725185271642,1.58668633,58289.0,58288.0,0.0049009]
[1725185271643,2.09780333,58289.0,58288.0,0.0049009]
[1725185273792,2.44092033,58289.0,58288.0,0.0049009]
[1725185273999,2.11188139,58289.0,58288.0,0.0049009]
[1725185274449,2.45499839,58289.0,58288.0,0.0049009]
[1725185276494,2.45999839,58289.0,58288.0,0.0049009]
[1725185277340,2.11188139,58289.0,58288.0,0.0049009]
[1725185277797,2.02948139,58289.0,58288.0,0.0049009]
[1725185278265,2.00255606,58289.0,58288.0,0.0049009]
[1725185278473,2.02948309,58289.0,58288.0,0.0049009]
[1725185278648,1.95280503,58289.0,58288.0,0.0049009]
[1725185278856,1.69595303,58289.0,58288.0,0.0049009]
[1725185279234,2.95619903,58289.0,58288.0,0.0049009]
[1725185279664,1.65607903,58289.0,58288.0,0.0049009]
[1725185279863,1.58063503,58289.0,58288.0,0.0049009]
[1725185280069,1.58263503,58289.0,58288.0,0.0049009]
[1725185280302,1.459214,58289.0,58288.0,0.0049009]
[1725185281258,1.461214,58289.0,58288.0,0.0049009]
[1725185283637,1.48813832,58289.0,58288.0,0.0049009]
[1725185286767,1.83125532,58289.0,58288.0,0.0049009]
[1725185286981,1.48813832,58289.0,58288.0,0.0049009]
[1725185290894,1.48895732,58289.0,58288.0,0.0049009]
[1725185297149,4.70532732,58289.0,58288.0,0.0049009]
[1725185297616,4.70532732,58289.0,58288.0,9e-07]
[1725185297617,5.11484432,58289.0,58288.0,9e-07]
[1725185297832,2.23141649,58289.0,58288.0,9e-07]
[1725185298040,2.538407,58286.0,58285.0,0.008998]
[1725185298251,7.610561,58286.0,58285.0,0.008998]
[1725185299104,7.534661,58286.0,58285.0,0.008998]
[1725185299818,7.473261,58286.0,58285.0,0.008998]
[1725185300021,5.890601,58286.0,58285.0,0.008998]
[1725185300243,5.94583117,58286.0,58285.0,0.009998]
[1725185301386,5.896601,58286.0,58285.0,0.009998]
[1725185301603,5.852045,58286.0,58285.0,0.009998]
[1725185302051,4.522831,58286.0,58285.0,0.086798]
[1725185302281,4.524831,58286.0,58285.0,0.086798]
[1725185302714,4.524831,58286.0,58285.0,0.086888]
[1725185302932,3.97355,58286.0,58285.0,0.086888]
[1725185303149,3.879053,58286.0,58285.0,0.086888]
[1725185303369,3.877053,58286.0,58285.0,0.086888]
[1725185303861,3.839871,58286.0,58285.0,0.086888]
[1725185304548,3.839871,58286.0,58285.0,0.010088]
[1725185304549,3.841871,58286.0,58285.0,0.010088]
[1725185305417,4.66177117,58286.0,58285.0,0.010088]
[1725185305626,4.269406,58286.0,58285.0,0.010088]
[1725185306878,4.208006,58286.0,58285.0,0.010088]
[1725185307268,4.185006,58286.0,58285.0,0.010088]
[1725185307488,5.94987227,58286.0,58285.0,0.010088]
[1725185307692,6.24593327,58286.0,58285.0,0.010088]
[1725185307843,5.97358027,58286.0,58285.0,0.010088]
[1725185308058,5.95922927,58286.0,58285.0,0.010088]
[1725185308276,5.89097627,58286.0,58285.0,0.010088]
[1725185308437,5.76372927,58286.0,58285.0,0.010088]
[1725185308647,5.72366927,58286.0,58285.0,0.010088]
[1725185310167,5.69713927,58286.0,58285.0,0.010088]
[1725185312032,5.798679,58286.0,58285.0,0.010088]
[1725185312247,5.91286944,58286.0,58285.0,0.010088]
[1725185313374,5.91786944,58286.0,58285.0,0.010088]
[1725185313998,6.26100444,58286.0,58285.0,0.010088]
[1725185314631,5.91286944,58286.0,58285.0,0.010088]
[1725185314841,5.72013927,58286.0,58285.0,0.010088]
[1725185315731,5.76936944,58286.0,58285.0,0.010088]
[1725185316587,5.77436944,58286.0,58285.0,0.010088]
[1725185317083,6.11750444,58286.0,58285.0,0.010088]
[1725185317284,5.72513927,58286.0,58285.0,0.010088]
[1725185317765,5.72013927,58286.0,58285.0,0.010088]
[1725185318400,5.72513927,58286.0,58285.0,0.010088]
[1725185318576,5.72013927,58286.0,58285.0,0.010088]
[1725185319320,7.50618727,58286.0,58285.0,0.010088]
[1725185320015,7.51118727,58286.0,58285.0,0.010088]
[1725185320679,7.50618727,58286.0,58285.0,0.010088]
[1725185321940,7.09160644,58286.0,58285.0,0.010088]
[1725185322144,6.68544944,58286.0,58285.0,0.010088]
[1725185322554,7.02858444,58286.0,58285.0,0.010088]
[1725185322726,6.42459644,58286.0,58285.0,0.010088]
[1725185322928,5.72239944,58286.0,58285.0,0.010088]
[1725185323976,5.67316927,58286.0,58285.0,0.010088]
[1725185324332,5.99525944,58286.0,58285.0,0.010088]
[1725185324582,5.91460644,58286.0,58285.0,0.010088]
[1725185324774,5.45876644,58286.0,58285.0,0.010088]
[1725185325288,5.45876644,58286.0,58279.0,0.008998]
[1725185325289,0.357,58280.0,58279.0,0.008998]
[1725185325524,0.357,58280.0,58279.0,1e-06]
[1725185325525,8.658259,58280.0,58279.0,1e-06]
[1725185325732,7.56102217,58280.0,58279.0,1e-06]
[1725185325944,7.39916317,58280.0,58279.0,1e-06]
[1725185326145,7.42609595,58280.0,58279.0,1e-06]
[1725185326963,6.50484695,58280.0,58279.0,1e-06]
[1725185327191,1.201448,58263.0,58262.0,0.083699]
[1725185327401,1.201448,58263.0,58262.0,0.20280969]
[1725185327402,0.870704,58263.0,58262.0,0.20280969]
[1725185327829,0.970704,58263.0,58262.0,0.143899]
[1725185328034,0.798623,58263.0,58262.0,0.143899]
[1725185328665,1.141894,58263.0,58262.0,0.143899]
[1725185328888,1.144894,58263.0,58262.0,0.145899]
[1725185329320,1.17182712,58263.0,58262.0,0.145899]
[1725185329731,1.51509812,58263.0,58262.0,0.145899]
[1725185331718,1.51509812,58263.0,58262.0,0.006499]
[1725185331937,1.854436,58263.0,58262.0,0.006499]
[1725185333015,2.202707,58263.0,58262.0,0.006499]
[1725185333458,2.70857683,58263.0,58262.0,1e-06]
[1725185333887,2.31607566,58263.0,58262.0,1e-06]
[1725185334372,1.201672,58252.0,58251.0,0.0004]
[1725185334586,3.228585,58252.0,58251.0,0.0004]
[1725185334804,3.160062,58252.0,58251.0,0.0004]
[1725185335029,3.137062,58252.0,58251.0,0.0004]
[1725185335311,2.500671,58252.0,58251.0,0.0004]
[1725185335636,2.268315,58252.0,58251.0,0.0004]
[1725185335793,1.93929259,58252.0,58251.0,0.0004]
[1725185336013,1.93929259,58252.0,58247.0,0.0604]
[1725185336014,1.201756,58248.0,58247.0,0.0604]
[1725185336237,2.217539,58248.0,58247.0,0.0604]
[1725185336448,1.677298,58248.0,58247.0,0.0604]
[1725185337115,1.70623999,58248.0,58247.0,0.0604]
[1725185339320,2.05259899,58248.0,58247.0,0.0604]
[1725185339802,2.05259899,58248.0,58245.0,0.0818]
[1725185339803,1.203798,58246.0,58245.0,0.0818]
[1725185340002,2.808972,58246.0,58245.0,0.0818]
[1725185340243,1.303798,58246.0,58245.0,0.0818]
[1725185340500,2.761974,58246.0,58245.0,0.0818]
[1725185341429,2.761974,58246.0,58235.0,0.1]
[1725185341430,0.171712,58237.0,58236.0,0.1443]
[1725185341642,1.867835,58237.0,58236.0,0.1443]
[1725185341873,1.170567,58237.0,58236.0,0.1443]
[1725185342125,1.192106,58237.0,58236.0,0.1443]
[1725185342348,1.05946,58237.0,58236.0,0.1443]
[1725185342815,0.95856,58237.0,58236.0,0.1443]
[1725185343296,0.616136,58237.0,58236.0,0.1443]
[1725185343540,1.546819,58237.0,58236.0,0.1443]
[1725185343775,1.890243,58237.0,58236.0,0.1443]
[1725185344256,1.509804,58237.0,58236.0,0.1443]
[1725185344972,1.53674905,58237.0,58236.0,0.1443]
[1725185346830,1.202005,58236.0,58235.0,0.1]
[1725185347053,2.794194,58236.0,58235.0,0.1]
[1725185347290,2.472834,58236.0,58235.0,0.1]
[1725185347767,1.647435,58236.0,58235.0,0.1]
[1725185348035,2.885737,58236.0,58235.0,0.1]
[1725185348944,2.885737,58236.0,58231.0,0.0004]
[1725185348945,0.007,58232.0,58231.0,1e-06]
[1725185349180,0.007,58232.0,58226.0,0.008998]
[1725185349181,1.168997,58230.0,58229.0,1e-06]
[1725185349471,8.013546,58230.0,58229.0,1e-06]
[1725185349664,8.92448832,58230.0,58229.0,1e-06]
[1725185350168,7.28767649,58230.0,58229.0,1e-06]
[1725185350415,6.93143717,58230.0,58229.0,1e-06]
[1725185350659,6.27031517,58230.0,58229.0,1e-06]
[1725185351175,6.61378017,58230.0,58229.0,1e-06]
[1725185351430,7.17838017,58230.0,58229.0,1e-06]
[1725185351674,1.546069,58212.0,58207.0,0.50540786]
[1725185351934,4.786798,58212.0,58207.0,0.50540786]
[1725185352192,4.786798,58212.0,58202.0,0.1379]
[1725185352193,3.812907,58212.0,58202.0,0.1379]
[1725185352464,2.22303447,58212.0,58211.0,0.0758]
[1725185352699,1.87946347,58212.0,58211.0,0.0758]
[1725185352930,2.22303447,58212.0,58211.0,0.0004]
[1725185354084,2.22403447,58212.0,58211.0,0.0004]
[1725185354335,0.171806,58205.0,58204.0,0.0558]
[1725185354713,0.6146,58205.0,58204.0,0.1183]
[1725185355094,0.64155847,58205.0,58204.0,0.1183]
[1725185355521,0.6146,58205.0,58204.0,0.1183]
[1725185356613,0.6156,58205.0,58204.0,0.1183]
[1725185357520,0.6156,58205.0,58204.0,0.290109]
[1725185357761,0.6156,58205.0,58204.0,0.1183]
[1725185358446,0.64255782,58205.0,58204.0,0.1183]
[1725185360106,0.54255782,58205.0,58204.0,0.1183]
[1725185360366,0.54255782,58205.0,58203.0,0.06006323]
[1725185360367,0.171809,58204.0,58203.0,0.06006323]
[1725185360580,0.54255782,58205.0,58203.0,0.008998]
[1725185360798,0.54255782,58205.0,58204.0,0.0625]
[1725185361049,0.54255782,58205.0,58204.0,0.1379]
[1725185361299,0.71436382,58205.0,58204.0,0.1379]
[1725185361533,0.54255782,58205.0,58204.0,0.1379]
[1725185362188,0.54255782,58205.0,58204.0,0.18896523]
[1725185362417,0.54255782,58205.0,58204.0,0.18896548]
[1725185362902,0.71436382,58205.0,58204.0,0.11356548]
[1725185363167,0.54155782,58205.0,58204.0,0.11356548]
[1725185363375,0.54155782,58205.0,58204.0,0.11256548]
[1725185363632,0.54155782,58205.0,58204.0,0.1369]
[1725185364098,0.54155782,58205.0,58204.0,0.308709]
[1725185364321,0.54155782,58205.0,58204.0,0.1369]
[1725185364542,0.54255782,58205.0,58204.0,0.1369]
[1725185365247,0.54255782,58205.0,58204.0,0.23903097]
[1725185367081,0.54255782,58205.0,58204.0,0.2391025]
[1725185368005,0.71436382,58205.0,58204.0,0.2391025]
[1725185368178,0.71436382,58205.0,58204.0,0.1369]
[1725185368903,0.54255782,58205.0,58204.0,0.1369]
[1725185369148,0.54255782,58205.0,58204.0,0.8730892]
[1725185369380,0.54255782,58205.0,58204.0,0.9968459]
[1725185369613,0.516419,58205.0,58204.0,0.9968459]
[1725185371470,0.516419,58205.0,58204.0,1.3404639]
[1725185371650,0.516419,58205.0,58204.0,1.3454639]
[1725185371833,0.516419,58205.0,58204.0,1.73018686]
[1725185372008,0.449819,58205.0,58204.0,1.52654635]
[1725185372214,0.383219,58205.0,58204.0,1.87016435]
[1725185372443,0.383219,58205.0,58204.0,1.88016435]
[1725185372878,0.383219,58205.0,58204.0,2.10680486]
[1725185373233,0.382219,58205.0,58204.0,2.10680486]
[1725185373641,0.383219,58205.0,58204.0,2.10680486]
[1725185374341,0.250019,58205.0,58204.0,2.10680486]
[1725185376395,0.02695424,58212.0,58211.0,0.858942]
[1725185376586,0.02695424,58212.0,58211.0,1.1245945]
[1725185376791,0.16885424,58212.0,58211.0,1.1245945]
[1725185377008,0.16885424,58212.0,58211.0,1.4681715]
[1725185377214,0.16885424,58212.0,58211.0,1.4731715]
[1725185377624,0.16885424,58212.0,58211.0,1.62694455]
[1725185377855,0.16985424,58212.0,58211.0,1.63794455]
[1725185378081,0.16985424,58212.0,58211.0,1.4841715]
[1725185378713,0.1429,58212.0,58211.0,1.63794455]
[1725185378960,0.1429,58212.0,58211.0,1.5071715]
[1725185379604,0.1429,58212.0,58211.0,1.8507485]
[1725185380227,0.1429,58212.0,58211.0,2.00470457]
[1725185380645,0.1429,58212.0,58211.0,1.8507485]
[1725185380855,0.1419,58212.0,58211.0,1.8497485]
[1725185381067,0.12423125,58234.0,58230.0,0.17173]
[1725185381285,0.1,58233.0,58232.0,0.0798]
[1725185381496,0.1,58233.0,58232.0,0.13112308]
[1725185381702,0.22423125,58233.0,58232.0,0.13112308]
[1725185381936,0.22423125,58233.0,58232.0,0.33541868]
[1725185382163,0.22423125,58233.0,58232.0,0.21501612]
[1725185382369,0.22423125,58233.0,58232.0,0.38674212]
[1725185383203,0.22423125,58233.0,58232.0,0.16369268]
[1725185383637,0.37036845,58238.0,58237.0,0.86356]
[1725185383638,0.02694845,58238.0,58237.0,0.86356]
[1725185383853,0.02694845,58238.0,58237.0,0.6842131]
[1725185384093,0.02694845,58238.0,58237.0,0.95066]
[1725185384278,0.000819,58247.0,58245.0,0.171686]
[1725185384545,0.000819,58247.0,58246.0,0.171685]
[1725185384795,0.000819,58247.0,58246.0,0.23601714]
[1725185385036,0.000819,58247.0,58246.0,0.06433214]
[1725185385254,0.000819,58247.0,58246.0,0.23601714]
[1725185385506,0.000819,58247.0,58246.0,0.66362139]
[1725185386222,0.000819,58247.0,58246.0,1.00699239]
[1725185386436,0.02775708,58247.0,58246.0,0.32025039]
[1725185386872,0.02775708,58247.0,58246.0,1.41103014]
[1725185387183,0.02775708,58247.0,58246.0,1.46233031]
[1725185387216,0.02775708,58247.0,58246.0,1.41103014]
[1725185387808,0.02775708,58247.0,58246.0,1.5159804]
[1725185388028,0.02775708,58247.0,58246.0,1.44403014]
[1725185388242,0.02775708,58247.0,58246.0,1.52084502]
[1725185388468,0.000819,58247.0,58246.0,1.89000149]
[1725185388684,0.000819,58247.0,58246.0,1.78740114]
[1725185388920,0.000819,58247.0,58246.0,1.79740114]
[1725185389142,0.000819,58247.0,58246.0,1.92532753]
[1725185389593,0.000819,58247.0,58246.0,1.79740114]
[1725185392343,0.000819,58247.0,58246.0,1.79240114]
[1725185392765,0.000819,58247.0,58246.0,1.79940114]
[1725185393443,0.000819,58247.0,58246.0,1.79240114]
[1725185393705,0.000819,58247.0,58246.0,1.80640114]
[1725185394829,0.000819,58247.0,58246.0,1.15010863]
[1725185395077,0.000819,58247.0,58246.0,1.37593014]
[1725185395286,0.000819,58247.0,58246.0,1.50347963]
[1725185395500,0.000819,58247.0,58246.0,1.44113014]
[1725185395746,0.000819,58247.0,58246.0,1.42713014]
[1725185396169,0.000819,58247.0,58246.0,1.44113014]
[1725185396390,0.000819,58247.0,58246.0,1.56862151]
[1725185396821,0.000819,58247.0,58246.0,1.55462151]
[1725185397060,0.000819,58247.0,58246.0,1.57762151]
[1725185397275,0.000819,58247.0,58246.0,1.46413014]
[1725185397716,0.000819,58247.0,58246.0,1.59160279]
[1725185398152,0.000819,58247.0,58246.0,1.46413014]
[1725185399282,0.000819,58247.0,58246.0,1.05555914]
[1725185399531,0.000819,58247.0,58246.0,1.1575338]
[1725185399763,0.000819,58247.0,58246.0,1.05555914]
[1725185399985,0.000819,58247.0,58246.0,1.04853114]
[1725185400206,0.000819,58247.0,58246.0,1.1505058]
[1725185400438,0.409984,58247.0,58246.0,0.1782788]
[1725185400670,1.268396,58247.0,58246.0,0.014]
[1725185400910,1.29533502,58247.0,58246.0,0.014]
[1725185401188,2.12028002,58247.0,58246.0,0.014]
[1725185401413,2.22228002,58247.0,58246.0,0.014]
[1725185402295,2.22028002,58247.0,58246.0,0.014]
[1725185402520,0.171726,58232.0,58231.0,0.50540786]
[1725185402741,0.579279,58232.0,58231.0,0.50540786]
[1725185402963,0.171735,58230.0,58227.0,0.05099581]
[1725185403180,0.407553,58232.0,58227.0,0.05099581]
[1725185403181,0.171736,58229.0,58227.0,0.05099581]
[1725185403424,0.26277495,58232.0,58227.0,0.09455344]
[1725185403642,0.26277495,58232.0,58228.0,0.05099581]
[1725185403862,0.26277495,58232.0,58229.0,0.00343432]
[1725185404081,0.26277495,58232.0,58229.0,0.03771323]
[1725185404300,0.26277495,58232.0,58231.0,0.006]
[1725185404526,0.94968095,58232.0,58231.0,0.006]
[1725185404754,0.60622795,58232.0,58231.0,0.006]
[1725185404989,0.02694695,58232.0,58231.0,0.006]
[1725185405222,0.02694695,58232.0,58231.0,0.02922132]
[1725185406194,0.02694695,58232.0,58231.0,0.07426418]
[1725185406411,0.02694695,58232.0,58231.0,0.24599318]
[1725185406651,0.02694695,58232.0,58231.0,0.07426418]
[1725185406876,0.02694695,58232.0,58231.0,0.05104286]
[1725185406877,0.54212595,58232.0,58231.0,0.05104286]
[1725185407079,0.515188,58231.0,58230.0,0.05104286]
[1725185407547,0.171732,58230.0,58229.0,0.05104286]
[1725185407786,0.171732,58230.0,58223.0,0.13260716]